[Event "Live Chess"]
[Site "Chess.com"]
[Date "2024.06.02"]
[Round "-"]
[White "ameetghasi100"]
[Black "Pandreq"]
[Result "1-0"]
[WhiteElo "2792"]
[BlackElo "1195"]
[TimeControl "300"]
[EndTime "1:59:05 PDT"]
[Termination "ameetghasi100 won by checkmate"]

1. c4 {[%clk 0:04:58.8]} 1... e5 {[%clk 0:04:58]} 2. d4 {[%clk 0:04:58.7]} 2...
exd4 {[%clk 0:04:55.6]} 3. e3 {[%clk 0:04:58.6]} 3... dxe3 {[%clk 0:04:52.6]} 4.
Bxe3 {[%clk 0:04:58.5]} 4... Nc6 {[%clk 0:04:51.4]} 5. Nc3 {[%clk 0:04:58.4]}
5... Bb4 {[%clk 0:04:49]} 6. Nf3 {[%clk 0:04:58.3]} 6... d6 {[%clk 0:04:47.5]}
7. Be2 {[%clk 0:04:57]} 7... Bf5 {[%clk 0:04:42.1]} 8. O-O {[%clk 0:04:56.2]}
8... Nge7 {[%clk 0:04:34.3]} 9. Nd5 {[%clk 0:04:55.3]} 9... Nxd5 {[%clk
0:04:28.3]} 10. cxd5 {[%clk 0:04:55.2]} 10... Ne7 {[%clk 0:04:20.2]} 11. Qa4+
{[%clk 0:04:53.9]} 11... c6 {[%clk 0:04:15.5]} 12. Qxb4 {[%clk 0:04:52.2]} 12...
cxd5 {[%clk 0:04:11]} 13. Bb5+ {[%clk 0:04:49.2]} 13... Bd7 {[%clk 0:04:09.3]}
14. Nd4 {[%clk 0:04:48.2]} 14... Nc6 {[%clk 0:04:03.6]} 15. Qxd6 {[%clk
0:04:46]} 15... a6 {[%clk 0:03:51.6]} 16. Rfe1 {[%clk 0:04:37.3]} 16... f6
{[%clk 0:03:33.9]} 17. Bh6+ {[%clk 0:04:27]} 17... Kf7 {[%clk 0:03:25.8]} 18.
Qxd5+ {[%clk 0:04:20.7]} 18... Kg6 {[%clk 0:03:24.1]} 19. Bd3+ {[%clk
0:04:16.2]} 19... Kxh6 {[%clk 0:03:19]} 20. Nf5+ {[%clk 0:04:15.7]} 20... Bxf5
{[%clk 0:03:10.9]} 21. Qxf5 {[%clk 0:04:15.6]} 21... g6 {[%clk 0:02:59]} 22.
Qf4+ {[%clk 0:04:14.6]} 22... Kg7 {[%clk 0:02:57.6]} 23. Rad1 {[%clk 0:04:13.8]}
23... Qb8 {[%clk 0:02:45.4]} 24. Qh4 {[%clk 0:04:07]} 24... Re8 {[%clk
0:02:34.4]} 25. Be4 {[%clk 0:04:00.6]} 25... Qc7 {[%clk 0:02:25.3]} 26. Re3
{[%clk 0:03:55.2]} 26... f5 {[%clk 0:02:13.3]} 27. Bxc6 {[%clk 0:03:51.6]} 27...
Qxc6 {[%clk 0:02:12.2]} 28. Re7+ {[%clk 0:03:48.6]} 28... Rxe7 {[%clk
0:02:07.2]} 29. Qxe7+ {[%clk 0:03:48.5]} 29... Kh8 {[%clk 0:01:55.3]} 30. h4
{[%clk 0:03:47.2]} 30... Re8 {[%clk 0:01:52.1]} 31. Qf7 {[%clk 0:03:46.2]} 31...
Qe6 {[%clk 0:01:43.7]} 32. Qxb7 {[%clk 0:03:42.5]} 32... Qe2 {[%clk 0:01:35.8]}
33. Rd7 {[%clk 0:03:36.2]} 33... Qe1+ {[%clk 0:01:31.8]} 34. Kh2 {[%clk
0:03:35]} 34... Qe5+ {[%clk 0:01:30.7]} 35. g3 {[%clk 0:03:33.4]} 35... f4
{[%clk 0:01:14]} 36. Rxh7+ {[%clk 0:03:30.4]} 36... Kg8 {[%clk 0:01:13.1]} 37.
Qf7# {[%clk 0:03:30]} 1-0

[Event "Live Chess"]
[Site "Chess.com"]
[Date "2024.06.02"]
[Round "-"]
[White "Dhaydon19"]
[Black "dmitro74"]
[Result "1-0"]
[WhiteElo "2628"]
[BlackElo "1702"]
[TimeControl "300"]
[EndTime "1:59:26 PDT"]
[Termination "Dhaydon19 won by resignation"]

1. d4 {[%clk 0:04:59]} 1... e6 {[%clk 0:04:58.8]} 2. Nf3 {[%clk 0:04:58.7]} 2...
d5 {[%clk 0:04:57.7]} 3. g3 {[%clk 0:04:58.6]} 3... c5 {[%clk 0:04:56.6]} 4. c3
{[%clk 0:04:58.5]} 4... cxd4 {[%clk 0:04:54.2]} 5. cxd4 {[%clk 0:04:55.2]} 5...
Nc6 {[%clk 0:04:52.7]} 6. Bg2 {[%clk 0:04:52.6]} 6... Bb4+ {[%clk 0:04:49.9]} 7.
Bd2 {[%clk 0:04:51]} 7... Bxd2+ {[%clk 0:04:48.3]} 8. Qxd2 {[%clk 0:04:50.9]}
8... Nf6 {[%clk 0:04:47.5]} 9. Nc3 {[%clk 0:04:48.8]} 9... b6 {[%clk 0:04:26.7]}
10. Ne5 {[%clk 0:04:44.9]} 10... Bb7 {[%clk 0:04:18.7]} 11. O-O {[%clk
0:04:42.5]} 11... Rc8 {[%clk 0:04:15.4]} 12. Nxc6 {[%clk 0:04:38.8]} 12... Rxc6
{[%clk 0:04:10.3]} 13. Rac1 {[%clk 0:04:37]} 13... O-O {[%clk 0:04:05.9]} 14.
Nb5 {[%clk 0:04:28.7]} 14... a6 {[%clk 0:03:54]} 15. Rxc6 {[%clk 0:04:25.8]}
15... Bxc6 {[%clk 0:03:52.2]} 16. Nc3 {[%clk 0:04:25.3]} 16... Qa8 {[%clk
0:03:36]} 17. Rc1 {[%clk 0:04:21.9]} 17... Rc8 {[%clk 0:03:34]} 18. e3 {[%clk
0:04:19.8]} 18... b5 {[%clk 0:03:26.7]} 19. Ne2 {[%clk 0:04:18.1]} 19... Bb7
{[%clk 0:03:20.2]} 20. Nf4 {[%clk 0:04:16.6]} 20... Ne4 {[%clk 0:03:08]} 21. Qe1
{[%clk 0:04:11.9]} 21... Rc4 {[%clk 0:02:53.8]} 22. Nd3 {[%clk 0:04:08.9]} 22...
Qc8 {[%clk 0:02:46.2]} 23. Bxe4 {[%clk 0:04:04.9]} 23... Rxc1 {[%clk 0:02:44.4]}
24. Qxc1 {[%clk 0:04:03.2]} 24... Qxc1+ {[%clk 0:02:41.9]} 25. Nxc1 {[%clk
0:04:02.1]} 25... dxe4 {[%clk 0:02:40.7]} 26. Nb3 {[%clk 0:04:01.1]} 26... Bc8
{[%clk 0:02:35]} 27. Nc5 {[%clk 0:03:59.6]} 27... f5 {[%clk 0:02:32.1]} 28. f3
{[%clk 0:03:56]} 28... exf3 {[%clk 0:02:29.6]} 29. Kf2 {[%clk 0:03:55.2]} 29...
Kf7 {[%clk 0:02:28.4]} 30. Kxf3 {[%clk 0:03:54.9]} 30... g5 {[%clk 0:02:26]} 31.
h4 {[%clk 0:03:53.4]} 31... h6 {[%clk 0:02:21.6]} 32. h5 {[%clk 0:03:42]} 32...
Ke7 {[%clk 0:02:19.9]} 33. e4 {[%clk 0:03:41.1]} 33... Kd6 {[%clk 0:02:16]} 34.
Ke3 {[%clk 0:03:38.7]} 34... a5 {[%clk 0:01:57.9]} 35. a3 {[%clk 0:03:34.9]}
35... Kc6 {[%clk 0:01:48.4]} 36. Nd3 {[%clk 0:03:29.8]} 36... Bb7 {[%clk
0:01:42.9]} 37. Ne5+ {[%clk 0:03:28.2]} 37... Kb6 {[%clk 0:01:38.1]} 38. exf5
{[%clk 0:03:26.8]} 38... exf5 {[%clk 0:01:35.4]} 39. Nf7 {[%clk 0:03:26.4]}
39... b4 {[%clk 0:01:29.4]} 40. axb4 {[%clk 0:03:24.9]} 40... a4 {[%clk
0:01:26.2]} 41. Nxh6 {[%clk 0:03:23.3]} 41... Kb5 {[%clk 0:01:23.4]} 42. Nxf5
{[%clk 0:03:21.5]} 42... Kxb4 {[%clk 0:01:21.9]} 43. h6 {[%clk 0:03:19.2]} 43...
Kb3 {[%clk 0:01:17.8]} 44. h7 {[%clk 0:03:18.4]} 44... Kxb2 {[%clk 0:01:17]} 45.
h8=Q {[%clk 0:03:17.6]} 45... a3 {[%clk 0:01:16.3]} 46. d5+ {[%clk 0:03:16.7]}
46... Kb1 {[%clk 0:01:14.8]} 47. Qc3 {[%clk 0:03:13.1]} 47... a2 {[%clk
0:01:12.6]} 48. Qb4+ {[%clk 0:03:12.1]} 48... Kc1 {[%clk 0:01:09.1]} 49. Nd4
{[%clk 0:03:06.9]} 49... a1=Q {[%clk 0:01:05.3]} 50. Nb3+ {[%clk 0:03:02.2]}
50... Kb2 {[%clk 0:01:00.4]} 51. Nxa1+ {[%clk 0:03:02.1]} 51... Kxa1 {[%clk
0:00:59.5]} 52. Qxb7 {[%clk 0:03:00.5]} 1-0

[Event "Live Chess"]
[Site "Chess.com"]
[Date "2024.06.02"]
[Round "-"]
[White "missedJariChance"]
[Black "lateforthesky"]
[Result "0-1"]
[WhiteElo "1356"]
[BlackElo "2070"]
[TimeControl "300"]
[EndTime "2:00:05 PDT"]
[Termination "lateforthesky won by resignation"]

1. b3 {[%clk 0:04:54.8]} 1... e5 {[%clk 0:04:58]} 2. Bb2 {[%clk 0:04:54]} 2...
Nc6 {[%clk 0:04:57]} 3. Nf3 {[%clk 0:04:52.6]} 3... d6 {[%clk 0:04:56.1]} 4. e3
{[%clk 0:04:51.1]} 4... g6 {[%clk 0:04:52.7]} 5. Be2 {[%clk 0:04:47.5]} 5... Bg7
{[%clk 0:04:51]} 6. O-O {[%clk 0:04:45]} 6... Nge7 {[%clk 0:04:49.8]} 7. c4
{[%clk 0:04:38.6]} 7... O-O {[%clk 0:04:48.4]} 8. d4 {[%clk 0:04:35.2]} 8... e4
{[%clk 0:04:29]} 9. Nfd2 {[%clk 0:04:29.7]} 9... f5 {[%clk 0:04:27.6]} 10. Nc3
{[%clk 0:04:08.2]} 10... Kh8 {[%clk 0:04:24.5]} 11. Qc2 {[%clk 0:04:01.9]} 11...
Nb4 {[%clk 0:04:20.9]} 12. Qc1 {[%clk 0:03:58.5]} 12... d5 {[%clk 0:04:19.2]}
13. a3 {[%clk 0:03:53.6]} 13... Nbc6 {[%clk 0:04:09.1]} 14. cxd5 {[%clk
0:03:41.2]} 14... Nxd5 {[%clk 0:04:07.5]} 15. Nb5 {[%clk 0:03:35.5]} 15... a6
{[%clk 0:03:59.4]} 16. Nc3 {[%clk 0:03:30.7]} 16... Nce7 {[%clk 0:03:49.8]} 17.
Bc4 {[%clk 0:03:27.3]} 17... c6 {[%clk 0:03:48.3]} 18. Na4 {[%clk 0:03:23.5]}
18... Be6 {[%clk 0:03:44.9]} 19. Nc5 {[%clk 0:03:19.1]} 19... Bc8 {[%clk
0:03:32]} 20. h3 {[%clk 0:03:08.1]} 20... b6 {[%clk 0:03:26.8]} 21. Bxd5 {[%clk
0:02:53.7]} 21... bxc5 {[%clk 0:03:05.1]} 22. Bc4 {[%clk 0:02:42.3]} 22... cxd4
{[%clk 0:03:04.1]} 23. exd4 {[%clk 0:02:34]} 23... Bxd4 {[%clk 0:03:02.2]} 24.
Rd1 {[%clk 0:02:27.6]} 24... Qb6 {[%clk 0:02:47.4]} 25. Bxd4+ {[%clk 0:02:22.1]}
25... Qxd4 {[%clk 0:02:42.4]} 26. Nf3 {[%clk 0:02:12.6]} 26... Qf6 {[%clk
0:02:35.2]} 27. Ng5 {[%clk 0:01:58.9]} 27... h6 {[%clk 0:02:14.4]} 28. Ne6
{[%clk 0:01:45.5]} 28... Bxe6 {[%clk 0:02:08.6]} 29. Qxh6+ {[%clk 0:01:43.1]}
29... Kg8 {[%clk 0:02:07.7]} 30. Rd6 {[%clk 0:01:32.2]} 30... Qxa1+ {[%clk
0:02:06.3]} 31. Kh2 {[%clk 0:01:30.3]} 31... Qe5+ {[%clk 0:02:05.8]} 0-1

[Event "Live Chess"]
[Site "Chess.com"]
[Date "2024.06.02"]
[Round "-"]
[White "KeithArkell"]
[Black "JanMur7"]
[Result "1-0"]
[WhiteElo "2405"]
[BlackElo "2269"]
[TimeControl "300"]
[EndTime "2:00:14 PDT"]
[Termination "KeithArkell won by resignation"]

1. d4 {[%clk 0:04:58]} 1... Nf6 {[%clk 0:04:58.3]} 2. Nf3 {[%clk 0:04:57.3]}
2... d5 {[%clk 0:04:56.8]} 3. c4 {[%clk 0:04:56.6]} 3... e6 {[%clk 0:04:55.5]}
4. cxd5 {[%clk 0:04:55.8]} 4... exd5 {[%clk 0:04:55.4]} 5. Nc3 {[%clk
0:04:55.3]} 5... Be7 {[%clk 0:04:50.2]} 6. Bg5 {[%clk 0:04:54]} 6... h6 {[%clk
0:04:46.9]} 7. Bxf6 {[%clk 0:04:52.8]} 7... Bxf6 {[%clk 0:04:46.8]} 8. b4 {[%clk
0:04:52]} 8... c6 {[%clk 0:04:46.5]} 9. e3 {[%clk 0:04:51.5]} 9... Bg4 {[%clk
0:04:43.9]} 10. Be2 {[%clk 0:04:50.6]} 10... O-O {[%clk 0:04:42.9]} 11. O-O
{[%clk 0:04:49.5]} 11... Nd7 {[%clk 0:04:36.8]} 12. b5 {[%clk 0:04:48.9]} 12...
Rb8 {[%clk 0:04:28.6]} 13. bxc6 {[%clk 0:04:47.7]} 13... bxc6 {[%clk 0:04:27.8]}
14. Rc1 {[%clk 0:04:47.4]} 14... Qa5 {[%clk 0:04:25.7]} 15. Na4 {[%clk
0:04:43.6]} 15... Rfc8 {[%clk 0:04:23.6]} 16. Nc5 {[%clk 0:04:41.6]} 16... Nxc5
{[%clk 0:04:21.9]} 17. Rxc5 {[%clk 0:04:40.7]} 17... Qxa2 {[%clk 0:04:20.9]} 18.
h3 {[%clk 0:04:39.9]} 18... Bf5 {[%clk 0:04:17.7]} 19. Bd3 {[%clk 0:04:39.1]}
19... Bxd3 {[%clk 0:04:16]} 20. Qxd3 {[%clk 0:04:38.5]} 20... Qb3 {[%clk
0:04:05.9]} 21. Qxb3 {[%clk 0:04:36.1]} 21... Rxb3 {[%clk 0:04:05.8]} 22. Rfc1
{[%clk 0:04:32.9]} 22... Rb6 {[%clk 0:04:03.1]} 23. Rxd5 {[%clk 0:04:32.2]}
23... cxd5 {[%clk 0:03:47.7]} 24. Rxc8+ {[%clk 0:04:32.1]} 24... Kh7 {[%clk
0:03:46.8]} 25. Rc5 {[%clk 0:04:29.9]} 25... Rb1+ {[%clk 0:03:43.4]} 26. Kh2
{[%clk 0:04:28.5]} 26... Rf1 {[%clk 0:03:36.9]} 27. Kg3 {[%clk 0:04:26.7]} 27...
h5 {[%clk 0:03:35.3]} 28. h4 {[%clk 0:04:25.7]} 28... Bd8 {[%clk 0:03:28.1]} 29.
Rxd5 {[%clk 0:04:24]} 29... Bc7+ {[%clk 0:03:26.8]} 30. Ne5 {[%clk 0:04:19]}
30... f6 {[%clk 0:03:22.4]} 31. Rd7 {[%clk 0:04:15.7]} 31... Rc1 {[%clk
0:03:15.2]} 32. f4 {[%clk 0:04:10.8]} 32... fxe5 {[%clk 0:03:13]} 33. fxe5
{[%clk 0:04:08.3]} 33... Kg6 {[%clk 0:03:10.1]} 34. Kf4 {[%clk 0:03:47.6]} 34...
a5 {[%clk 0:03:08.7]} 35. d5 {[%clk 0:03:47.1]} 35... a4 {[%clk 0:02:39.6]} 36.
d6 {[%clk 0:03:46]} 36... Bb6 {[%clk 0:02:38.1]} 37. Rb7 {[%clk 0:03:43.2]}
37... a3 {[%clk 0:02:08.6]} 38. Rxb6 {[%clk 0:03:37.4]} 38... a2 {[%clk
0:02:07.2]} 39. d7+ {[%clk 0:03:36.4]} 39... Kh7 {[%clk 0:02:02.6]} 40. Ra6
{[%clk 0:03:33.1]} 40... Rd1 {[%clk 0:01:57.3]} 41. e6 {[%clk 0:03:28.6]} 1-0

[Event "Live Chess"]
[Site "Chess.com"]
[Date "2024.06.02"]
[Round "-"]
[White "elis06"]
[Black "EdenHazard8"]
[Result "1-0"]
[WhiteElo "2190"]
[BlackElo "2192"]
[TimeControl "300"]
[EndTime "2:00:31 PDT"]
[Termination "elis06 won by resignation"]

1. e4 {[%clk 0:04:57.3]} 1... c6 {[%clk 0:04:56.3]} 2. Nf3 {[%clk 0:04:54.7]}
2... d5 {[%clk 0:04:56.2]} 3. Nc3 {[%clk 0:04:53.9]} 3... dxe4 {[%clk
0:04:54.5]} 4. Nxe4 {[%clk 0:04:52.9]} 4... Nf6 {[%clk 0:04:54.4]} 5. Qe2 {[%clk
0:04:47.2]} 5... Nxe4 {[%clk 0:04:52.9]} 6. Qxe4 {[%clk 0:04:46]} 6... Qa5
{[%clk 0:04:50.5]} 7. Bc4 {[%clk 0:04:41.9]} 7... Bf5 {[%clk 0:04:49.3]} 8. Qf4
{[%clk 0:04:29.9]} 8... e6 {[%clk 0:04:43]} 9. c3 {[%clk 0:04:26.2]} 9... Nd7
{[%clk 0:04:39.2]} 10. O-O {[%clk 0:04:22.4]} 10... Be7 {[%clk 0:04:36.1]} 11.
d4 {[%clk 0:04:20.3]} 11... O-O {[%clk 0:04:33.2]} 12. Bd2 {[%clk 0:04:12.5]}
12... Rad8 {[%clk 0:04:26.6]} 13. Rfe1 {[%clk 0:04:08.2]} 13... Nb6 {[%clk
0:04:24]} 14. Bb3 {[%clk 0:04:04.4]} 14... Nd5 {[%clk 0:04:18.2]} 15. Qg3 {[%clk
0:03:58]} 15... Bd6 {[%clk 0:04:13.2]} 16. Qh4 {[%clk 0:03:50.3]} 16... Qc7
{[%clk 0:04:03.5]} 17. h3 {[%clk 0:03:25.6]} 17... Be7 {[%clk 0:03:53.6]} 18.
Bg5 {[%clk 0:03:20.1]} 18... Bxg5 {[%clk 0:03:50.5]} 19. Qxg5 {[%clk 0:03:15.4]}
19... h6 {[%clk 0:03:48.7]} 20. Qd2 {[%clk 0:03:11.8]} 20... Nf4 {[%clk
0:03:40.7]} 21. Ne5 {[%clk 0:03:06.6]} 21... Ng6 {[%clk 0:03:35.6]} 22. Qe2
{[%clk 0:02:59.5]} 22... Nxe5 {[%clk 0:03:32.1]} 23. Qxe5 {[%clk 0:02:59.4]}
23... Qb6 {[%clk 0:03:26]} 24. Rad1 {[%clk 0:02:56.1]} 24... a5 {[%clk
0:03:22.8]} 25. Rd2 {[%clk 0:02:34.5]} 25... Rd7 {[%clk 0:03:05.6]} 26. Re3
{[%clk 0:02:32.3]} 26... Rfd8 {[%clk 0:03:00.1]} 27. Rg3 {[%clk 0:02:29.7]}
27... Bg6 {[%clk 0:02:33.6]} 28. Bxe6 {[%clk 0:02:10.2]} 28... Re8 {[%clk
0:02:22.3]} 29. Bxf7+ {[%clk 0:02:05.6]} 29... Kxf7 {[%clk 0:02:20.8]} 30. Qf4+
{[%clk 0:02:01.8]} 30... Kg8 {[%clk 0:02:17.3]} 31. Rxg6 {[%clk 0:02:00.5]}
31... Rf7 {[%clk 0:02:07.8]} 32. Qg3 {[%clk 0:01:47.2]} 32... Qb5 {[%clk
0:01:55.5]} 33. Rd1 {[%clk 0:01:28]} 33... Qxb2 {[%clk 0:01:45.2]} 34. Rxh6
{[%clk 0:01:14.5]} 34... Qxa2 {[%clk 0:01:18.4]} 35. Rf1 {[%clk 0:01:08.6]}
35... a4 {[%clk 0:01:08.2]} 36. Rh4 {[%clk 0:01:07.4]} 36... a3 {[%clk
0:01:00.4]} 37. Qg6 {[%clk 0:01:05.7]} 37... Rf6 {[%clk 0:00:26.3]} 38. Qxe8+
{[%clk 0:01:03.3]} 1-0

[Event "Live Chess"]
[Site "Chess.com"]
[Date "2024.06.02"]
[Round "-"]
[White "ggosyaa"]
[Black "jellhhggffhjjjjjj"]
[Result "0-1"]
[WhiteElo "575"]
[BlackElo "482"]
[TimeControl "300"]
[EndTime "2:01:10 PDT"]
[Termination "jellhhggffhjjjjjj won by resignation"]

1. d4 {[%clk 0:04:58.3]} 1... c5 {[%clk 0:04:57.3]} 2. d5 {[%clk 0:04:55.4]}
2... d6 {[%clk 0:04:54.9]} 3. Nc3 {[%clk 0:04:54.5]} 3... e6 {[%clk 0:04:53.5]}
4. Bf4 {[%clk 0:04:51.7]} 4... Nf6 {[%clk 0:04:48.9]} 5. e4 {[%clk 0:04:48.5]}
5... Bd7 {[%clk 0:04:40.3]} 6. Nf3 {[%clk 0:04:42.5]} 6... exd5 {[%clk
0:04:38.5]} 7. exd5 {[%clk 0:04:39.8]} 7... Bg4 {[%clk 0:04:32.6]} 8. Be2 {[%clk
0:04:37.4]} 8... Be7 {[%clk 0:04:30]} 9. O-O {[%clk 0:04:35.7]} 9... Nbd7 {[%clk
0:04:28.6]} 10. Ng5 {[%clk 0:04:27.4]} 10... Bxe2 {[%clk 0:04:24.4]} 11. Qxe2
{[%clk 0:04:26.5]} 11... h6 {[%clk 0:04:23.2]} 12. Nge4 {[%clk 0:04:23]} 12...
Nxe4 {[%clk 0:04:20.8]} 13. Qxe4 {[%clk 0:04:22.7]} 13... O-O {[%clk 0:04:19.4]}
14. Qf3 {[%clk 0:04:13.5]} 14... Bg5 {[%clk 0:04:15]} 15. Bxd6 {[%clk
0:04:09.1]} 15... Re8 {[%clk 0:04:08.4]} 16. Bxc5 {[%clk 0:04:02.7]} 16... Nxc5
{[%clk 0:04:06.5]} 17. Nb1 {[%clk 0:03:57.8]} 17... Qf6 {[%clk 0:03:54.1]} 18.
Qe2 {[%clk 0:03:48]} 18... Rxe2 {[%clk 0:03:52.2]} 0-1

[Event "Live Chess"]
[Site "Chess.com"]
[Date "2024.06.02"]
[Round "-"]
[White "GEMdzq"]
[Black "ProfPoisson"]
[Result "1-0"]
[WhiteElo "2292"]
[BlackElo "1333"]
[TimeControl "300"]
[EndTime "2:01:11 PDT"]
[Termination "GEMdzq won by resignation"]

1. e4 {[%clk 0:04:58.3]} 1... e5 {[%clk 0:04:56.7]} 2. d4 {[%clk 0:04:56.8]}
2... exd4 {[%clk 0:04:51]} 3. c3 {[%clk 0:04:56.3]} 3... dxc3 {[%clk 0:04:48]}
4. Bc4 {[%clk 0:04:55.8]} 4... cxb2 {[%clk 0:04:45.8]} 5. Bxb2 {[%clk
0:04:55.7]} 5... d5 {[%clk 0:04:44]} 6. Bxd5 {[%clk 0:04:53.8]} 6... Nf6 {[%clk
0:04:41.4]} 7. Bxf7+ {[%clk 0:04:52.7]} 7... Kxf7 {[%clk 0:04:38.9]} 8. Qxd8
{[%clk 0:04:52.6]} 8... Bb4+ {[%clk 0:04:36.9]} 9. Qd2 {[%clk 0:04:52.2]} 9...
Bxd2+ {[%clk 0:04:35.3]} 10. Nxd2 {[%clk 0:04:52.1]} 10... Re8 {[%clk 0:04:30]}
11. Ngf3 {[%clk 0:04:49.3]} 11... Nc6 {[%clk 0:04:20.9]} 12. O-O {[%clk
0:04:48.1]} 12... Be6 {[%clk 0:04:17.1]} 13. Ng5+ {[%clk 0:04:38.1]} 13... Kg6
{[%clk 0:04:07.3]} 14. Nxe6 {[%clk 0:04:35.4]} 14... Rxe6 {[%clk 0:04:05.6]} 15.
f4 {[%clk 0:04:34.8]} 15... Kf7 {[%clk 0:03:48.5]} 16. e5 {[%clk 0:04:32.3]}
16... Nd7 {[%clk 0:03:34.5]} 17. Ne4 {[%clk 0:04:21.8]} 17... Kg8 {[%clk
0:03:18.9]} 18. Rad1 {[%clk 0:04:19.7]} 18... Nb6 {[%clk 0:03:13]} 19. f5 {[%clk
0:04:12]} 19... Rh6 {[%clk 0:03:05.4]} 20. f6 {[%clk 0:04:06.2]} 20... gxf6
{[%clk 0:03:02]} 21. Nxf6+ {[%clk 0:04:04]} 21... Kh8 {[%clk 0:02:43.1]} 22. e6
{[%clk 0:04:03.2]} 22... Ne7 {[%clk 0:02:40.6]} 23. Ng4+ {[%clk 0:03:59.1]} 1-0

[Event "Live Chess"]
[Site "Chess.com"]
[Date "2024.06.02"]
[Round "-"]
[White "NAZRIZ1977"]
[Black "MagnersCarlsberg2870"]
[Result "0-1"]
[WhiteElo "2110"]
[BlackElo "1816"]
[TimeControl "300"]
[EndTime "2:01:11 PDT"]
[Termination "MagnersCarlsberg2870 won by resignation"]

1. d4 {[%clk 0:04:52.2]} 1... Nf6 {[%clk 0:04:58.3]} 2. Nf3 {[%clk 0:04:50.8]}
2... b6 {[%clk 0:04:56.3]} 3. e3 {[%clk 0:04:48.6]} 3... Bb7 {[%clk 0:04:55.1]}
4. Nbd2 {[%clk 0:04:48.2]} 4... g6 {[%clk 0:04:52.5]} 5. g3 {[%clk 0:04:44.9]}
5... Bg7 {[%clk 0:04:51.3]} 6. Bg2 {[%clk 0:04:44.5]} 6... O-O {[%clk 0:04:50]}
7. O-O {[%clk 0:04:44.1]} 7... d6 {[%clk 0:04:46.9]} 8. b3 {[%clk 0:04:42.1]}
8... Nbd7 {[%clk 0:04:45.9]} 9. Bb2 {[%clk 0:04:41.5]} 9... Re8 {[%clk
0:04:45.1]} 10. c4 {[%clk 0:04:38.9]} 10... Rb8 {[%clk 0:04:43.8]} 11. d5 {[%clk
0:04:37.3]} 11... e5 {[%clk 0:04:42.7]} 12. dxe6 {[%clk 0:04:36.3]} 12... fxe6
{[%clk 0:04:41.2]} 13. Nh4 {[%clk 0:04:31.1]} 13... Bxg2 {[%clk 0:04:37.9]} 14.
Nxg2 {[%clk 0:04:31]} 14... e5 {[%clk 0:04:36.9]} 15. Qc2 {[%clk 0:04:27.1]}
15... Ng4 {[%clk 0:04:33.3]} 16. h3 {[%clk 0:04:25]} 16... Nh6 {[%clk
0:04:31.1]} 17. Rfe1 {[%clk 0:04:23.3]} 17... Qf6 {[%clk 0:04:22.7]} 18. f4
{[%clk 0:04:19.8]} 18... Qe6 {[%clk 0:04:16.1]} 19. Rad1 {[%clk 0:04:14.4]}
19... Qxh3 {[%clk 0:04:14.2]} 20. Nf3 {[%clk 0:04:07.4]} 20... Ng4 {[%clk
0:04:11.4]} 0-1

[Event "Live Chess"]
[Site "Chess.com"]
[Date "2024.06.02"]
[Round "-"]
[White "AndyJWise"]
[Black "bill77678"]
[Result "0-1"]
[WhiteElo "1036"]
[BlackElo "1834"]
[TimeControl "300"]
[EndTime "2:01:21 PDT"]
[Termination "bill77678 won by checkmate"]

1. d4 {[%clk 0:04:56.7]} 1... d5 {[%clk 0:04:58.4]} 2. c4 {[%clk 0:04:55.6]}
2... e6 {[%clk 0:04:58]} 3. Nc3 {[%clk 0:04:54]} 3... Nf6 {[%clk 0:04:57.4]} 4.
Bg5 {[%clk 0:04:52.6]} 4... dxc4 {[%clk 0:04:56.6]} 5. e4 {[%clk 0:04:49.7]}
5... c5 {[%clk 0:04:55.7]} 6. e5 {[%clk 0:04:46.6]} 6... cxd4 {[%clk 0:04:54]}
7. exf6 {[%clk 0:04:39.9]} 7... gxf6 {[%clk 0:04:53.1]} 8. Bh4 {[%clk
0:04:29.6]} 8... Be7 {[%clk 0:04:34.8]} 9. Ne4 {[%clk 0:04:26.7]} 9... Bb4+
{[%clk 0:04:28.1]} 10. Nd2 {[%clk 0:04:21.2]} 10... c3 {[%clk 0:04:24.7]} 11.
bxc3 {[%clk 0:04:20]} 11... dxc3 {[%clk 0:04:24.6]} 12. Rb1 {[%clk 0:04:10.9]}
12... cxd2+ {[%clk 0:04:04.8]} 13. Ke2 {[%clk 0:04:03.3]} 13... Nc6 {[%clk
0:04:03.1]} 14. Rxb4 {[%clk 0:03:55.1]} 14... Nxb4 {[%clk 0:04:01]} 15. Nf3
{[%clk 0:03:44.5]} 15... Qd3# {[%clk 0:03:57.2]} 0-1